fUST/lending_fUST_20250804
["ID","MTS","AMOUNT","RATE_DAILY","PERIOD"]
[377176909,1754268649431,-494.32278028,0.00049315,120]
[377176911,1754268649440,-460.0,0.00049315,120]
[377176913,1754268649449,-460.0,0.00049315,120]
[377176915,1754268649459,-1203.62,0.00049315,30]
[377176917,1754268649468,-460.0,0.00049315,120]
[377176919,1754268649477,-671.36,0.00049315,120]
[377176921,1754268649487,-500.0,0.00049315,120]
[377176923,1754268649495,-6605.71,0.00049315,120]
[377176924,1754268649505,-500.0,0.00049315,120]
[377176926,1754268649514,-371.06891416,0.00049315,120]
[377176928,1754268649523,-460.0,0.00049315,120]
[377176930,1754268649532,-5821.09,0.00049315,120]
[377176932,1754268649542,-2109.34,0.00049315,120]
[377176935,1754268649551,-2109.34,0.00049315,120]
[377176936,1754268649564,-2109.34,0.00049315,120]
[377176939,1754268649574,-17877.55,0.00049315,120]
[377176940,1754268649583,-2109.34,0.00049315,120]
[377176942,1754268649592,-460.0,0.00049315,120]
[377176944,1754268649602,-722.15,0.00049315,120]
[377176946,1754268649611,-2109.34,0.00049315,120]
[377176948,1754268649621,-2109.34,0.00049315,120]
[377176950,1754268649630,-984.32,0.00049315,120]
[377176952,1754268649639,-2109.34,0.00049315,120]
[377176954,1754268649648,-2109.34,0.00049315,120]
[377176956,1754268649658,-878.36560654,0.00049315,120]
[377176959,1754268649672,-1230.97439346,0.00049315,120]
[377176961,1754268649683,-2109.34,0.00049315,120]
[377176963,1754268649693,-2109.34,0.00049315,120]
[377176965,1754268649703,-288.27082393,0.00049315,120]
[377177014,1754268650175,-90.99269248,0.0004,120]
[377183497,1754268718214,560.25111418,0.0003,7]
[377184587,1754268730291,172.0,0.00024,120]
[377185526,1754268747199,161.637477,0.00013699,2]
[377185527,1754268756167,156.0,0.0003,15]
[377185529,1754268765777,156.0,0.0003,20]
[377185532,1754268927451,165.0,0.0003,3]
[377185533,1754268932511,165.0,0.0003,7]
[377185534,1754269013198,3307.14,0.00030137,120]
[377185535,1754269076152,165.0,0.0003,2]
[377185537,1754269607221,-179.76628946,0.0003868,20]
[377185538,1754269607249,-3.84638926,0.000389,39]
[377185566,1754269832265,-162.057805,0.00039054,2]
[377185568,1754269832275,-202.71843885,0.000398,2]
[377185570,1754269832285,-1057.25412619,0.000399,41]
[377185572,1754269832294,-155.63363647,0.000399,2]
[377185574,1754269832304,-163.0,0.0004,30]
[377185576,1754269832313,-164.0,0.0004,35]
[377185578,1754269832323,-1057.25412598,0.00040383,42]
[377185580,1754269832332,-1057.25412598,0.00040866,43]
[377185582,1754269832342,-1057.25412598,0.00041348,44]
[377185584,1754269832352,-1057.25412598,0.00041831,45]
[377185586,1754269832361,-165.0,0.00042,45]
[377185588,1754269832370,-165.0,0.00042,45]
[377185590,1754269832381,-1057.25412598,0.00042314,46]
[377185592,1754269832390,-120.11308539,0.00042797,47]
[377185765,1754269838311,-937.14104059,0.00042797,47]
[377185766,1754269838322,-172.0,0.000428,120]
[377185767,1754269838332,-320.0,0.00042846,5]
[377185768,1754269838341,-480.0,0.00042846,5]
[377185769,1754269838352,-967.91369659,0.00042847,2]
[377185827,1754269846470,-1049.0895498,0.00042847,2]
[377185828,1754269847818,150.0,0.0002619,2]
[377185829,1754269892312,154.48,0.00027115,7]
[377185830,1754269892355,154.48,0.00027315,7]
[377185831,1754269892464,154.48,0.00027415,15]
[377185832,1754269892559,154.48,0.00027515,15]
[377185833,1754269892605,154.48,0.00027615,15]
[377185834,1754269893041,154.48,0.00027815,15]
[377185835,1754269893077,154.48,0.00028015,15]
[377185836,1754269893116,154.48,0.00027915,15]
[377185837,1754269893176,154.52,0.00028115,15]
[377185838,1754269894468,154.48,0.00027015,7]
[377185839,1754269894723,154.48,0.00027215,7]
[377185840,1754269895080,154.48,0.00027715,15]
[377185844,1754269927154,1388.94,0.00030137,120]
[377185845,1754269929310,161.801262,0.00013699,2]
[377185846,1754269978654,150.0,0.00026246,2]
[377185847,1754269989428,-158.75,0.0003749,3]
[377185848,1754269989451,-476.25,0.0003749,3]
[377185849,1754269989472,-400.0,0.00037498,2]
[377185850,1754269989495,-500.0,0.00037499,15]
[377185851,1754269989518,-500.0,0.00037499,2]
[377185852,1754269989542,-500.0,0.00037499,2]
[377185853,1754269989564,-438.6875438,0.00037499,15]
[377185854,1754269989588,-500.0,0.00037499,2]
[377185855,1754269989611,-500.0,0.00037499,2]
[377185856,1754269989634,-500.0,0.00037499,2]
[377185857,1754269989660,-373.28625148,0.00037499,2]
[377185858,1754269989684,-500.0,0.00037499,2]
[377185859,1754269989708,-500.0,0.00037499,2]
[377185860,1754269989731,-500.0,0.00037499,2]
[377185861,1754269989753,-500.0,0.00037499,2]
[377185862,1754269989775,-500.0,0.00037499,2]
[377185863,1754269989798,-500.0,0.00037499,2]
[377185864,1754269989821,-500.0,0.00037499,2]
[377185865,1754269989843,-500.0,0.00037499,2]
[377185866,1754269989865,-500.0,0.00037499,2]
[377185867,1754269989887,-500.0,0.00037499,2]
[377185868,1754269989909,-500.0,0.00037499,2]
[377185869,1754269989931,-500.0,0.00037499,2]
[377185870,1754269990120,-42.02620472,0.00037499,2]
[377185873,1754270277495,312.16666667,0.00028,3]
[377185874,1754270278079,151.0,0.00030137,120]
[377185875,1754270322883,-185.65,0.00036242,7]
[377185876,1754270322904,-406.35,0.00037,120]
[377185877,1754270583922,-64.65,0.00037,120]
[377185878,1754270583944,-400.0,0.00037399,2]
[377185879,1754270590666,4217.55090732,0.0003739,3]
[377185880,1754270591726,1006.37453044,0.00037399,2]
[377185881,1754270592322,4380.9101407,0.0003739,3]
[377185882,1754270595504,434.17,0.0003739,3]
[377185883,1754270595982,246.99269249,0.00036,35]
[377185884,1754270606442,217.09,0.0003739,3]
[377185885,1754270612153,2478.02737603,0.000374,2]
[377185886,1754270617104,651.28,0.0003739,3]
[377185887,1754270637744,1728.2811549,0.00034573,2]
[377185888,1754270640526,370.93272144,0.00037399,2]
[377185889,1754270643493,300.0,0.00037399,3]
[377185890,1754270643905,400.0,0.00037399,2]
[377185891,1754270646785,159.29,0.00027121,7]
[377185892,1754270646849,159.29,0.00027221,7]
[377185893,1754270646891,159.29,0.00027321,7]
[377185894,1754270647067,159.31,0.00027421,15]
[377185895,1754270649263,159.29,0.00027021,7]
[377185896,1754270652666,302.22485471,0.0003,2]
[377185897,1754270672561,500.0,0.00037399,2]
[377185898,1754270672604,500.0,0.00037399,2]
[377185899,1754270672662,500.0,0.00037399,2]
[377185900,1754270672722,349.5050409,0.00037399,2]
[377185901,1754270740524,5000.0,0.00029761,30]
[377185902,1754270772290,1044.0,0.00030137,120]
[377185903,1754270795132,-183.94779434,0.00035485,2]
[377185907,1754270904167,161.883154,0.00013699,2]
[377185909,1754270918686,40000.0,0.00025,2]
[377185910,1754270921747,1153.148209,0.00026,30]
[377185914,1754271003164,1999.999999,0.000192,2]
[377185916,1754271019167,197.33430053,0.0003,2]
[377185930,1754271032703,-155.0,0.00029718,2]
[377185931,1754271032714,-729.92369681,0.00035285,2]
[377185932,1754271032725,-2293.5719513,0.00035285,2]
[377185933,1754271032735,-155.63363647,0.00035385,2]
[377185934,1754271032744,-237.12683866,0.00035485,2]
[377185935,1754271032753,-1134.0,0.00037357,3]
[377185936,1754271032762,-400.0,0.00037389,2]
[377185937,1754271032772,-278.0,0.00037389,3]
[377185938,1754271032781,-440.43,0.0003739,3]
[377185939,1754271032789,-220.21,0.0003739,3]
[377185940,1754271032799,-660.67,0.0003739,3]
[377185941,1754271032808,-210.30721575,0.00037399,2]
[377185942,1754271032817,-6449.8563621,0.000374,2]
[377185943,1754271032826,-10.18285244,0.0003749,3]
[377185975,1754271038523,-177.63660075,0.00030137,120]
[377185977,1754271038534,-157.1648716,0.00037395,2]
[377185980,1754271038544,-774.71263957,0.0003749,3]
[377185982,1754271038556,-377.33167231,0.0003749,3]
[377185984,1754271038567,-1476.8542889,0.0003749,3]
[377185986,1754271038578,-736.4096862,0.0003749,3]
[377185988,1754271038590,-4750.60385432,0.0003749,3]
[377185990,1754271038599,-460.95174316,0.00037494,2]
[377185992,1754271038608,-1027.2956807,0.00037499,2]
[377185994,1754271038618,-509.79564448,0.00037574,2]
[377185996,1754271038627,-292.35326866,0.000378,5]
[377185999,1754271038637,-500.0,0.000378,5]
[377186000,1754271038647,-500.0,0.000378,5]
[377186003,1754271038657,-500.0,0.000378,5]
[377186005,1754271038666,-500.0,0.000378,5]
[377186007,1754271038676,-501.46076756,0.000378,5]
[377186008,1754271038685,-505.13672261,0.000378,5]
[377186011,1754271038694,-1068.97704366,0.000379,37]
[377186012,1754271038703,-837.15305541,0.00038348,5]
[377186015,1754271038713,-1000.0,0.00038348,5]
[377186017,1754271038723,-1000.0,0.00038348,5]
[377186018,1754271038732,-382.90587674,0.00038652,2]
[377186020,1754271038742,-1239.01368801,0.00038653,2]
[377186022,1754271038751,-24900.0,0.00038653,2]
[377186024,1754271038761,-179.74835231,0.0003868,20]
[377186026,1754271038771,-500.0,0.000387,5]
[377186028,1754271038780,-500.0,0.000387,5]
[377186030,1754271038789,-200.0,0.00038754,30]
[377186032,1754271038799,-880.86,0.0003876,3]
[377186035,1754271038809,-440.42,0.0003876,3]
[377186037,1754271038819,-845.83877772,0.00038896,5]
[377186039,1754271038830,-1000.0,0.00039248,5]
[377186041,1754271038840,-500.0,0.00039796,5]
[377186043,1754271038849,-457.0,0.0003999,5]
[377186045,1754271038859,-210.30721574,0.00040353,2]
[377186047,1754271038868,-4693.57,0.00041095,120]
[377186049,1754271038878,-200.0,0.00041128,30]
[377186051,1754271038888,-200.0,0.00041128,30]
[377186053,1754271038898,-200.0,0.00041128,30]
[377186055,1754271038907,-200.0,0.00041128,30]
[377186057,1754271038917,-4063.04749687,0.00041129,3]
[377186059,1754271038926,-267.54632741,0.00041133,120]
[377186061,1754271038936,-4693.57,0.0004178,120]
[377186063,1754271038945,-200.0,0.000421,20]
[377186065,1754271038955,-200.0,0.000421,20]
[377186067,1754271038965,-200.0,0.000421,20]
[377186069,1754271038974,-200.0,0.000421,20]
[377186071,1754271038984,-4693.57,0.00042465,120]
[377186073,1754271038993,-160.0,0.00042711,2]
[377186075,1754271039004,-2078.23,0.000429,7]
[377186077,1754271039014,-153.0,0.00042974,30]
[377186079,1754271039024,-160.0,0.00043,120]
[377186081,1754271039033,-160.0,0.00043,90]
[377186083,1754271039043,-160.0,0.00043,90]
[377186085,1754271039053,-153.0,0.00043002,30]
[377186087,1754271039063,-153.0,0.00043002,30]
[377186089,1754271039072,-153.0,0.00043002,30]
[377186091,1754271039081,-153.0,0.00043002,30]
[377186093,1754271039091,-153.0,0.00043002,30]
[377186095,1754271039100,-153.0,0.00043002,30]
[377186097,1754271039110,-4693.57,0.0004315,120]
[377186099,1754271039120,-200.0,0.0004321,120]
[377186101,1754271039129,-210.30721574,0.00043307,2]
[377186103,1754271039138,-4693.57,0.00043835,120]
[377186105,1754271039148,-555.9,0.000439,14]
[377186107,1754271039157,-151.0,0.000445,11]
[377186109,1754271039167,-4693.57,0.0004452,120]
[377186111,1754271039177,-200.0,0.00044979,30]
[377186113,1754271039186,-200.0,0.00044979,30]
[377186115,1754271039196,-200.0,0.00044979,30]
[377186117,1754271039206,-200.0,0.00044979,30]
[377186119,1754271039215,-320.0,0.00044979,30]
[377186121,1754271039225,-180.28105091,0.00044999,2]
[377186123,1754271039234,-165.0,0.00045,45]
[377186125,1754271039244,-4693.57,0.00045205,120]
[377186127,1754271039254,-151.0,0.000457,25]
[377186129,1754271039263,-4063.04749687,0.0004588,4]
[377186131,1754271039273,-4693.57,0.0004589,120]
[377186134,1754271039282,-2078.23,0.000459,7]
[377186136,1754271039292,-156.0,0.00046,60]
[377186137,1754271039301,-156.0,0.00046,60]
[377186139,1754271039310,-156.0,0.00046,60]
[377186142,1754271039319,-156.0,0.00046,120]
[377186144,1754271039328,-156.0,0.00046,90]
[377186146,1754271039337,-156.0,0.00046,30]
[377186147,1754271039346,-156.0,0.00046,45]
[377186149,1754271039356,-210.30721574,0.00046261,2]
[377186152,1754271039366,-4693.57,0.00046575,120]
[377186154,1754271039375,-151.0,0.000469,29]
[377186156,1754271039385,-4693.57,0.0004726,120]
[377186169,1754271039504,-555.9,0.000473,14]
[377186171,1754271039513,-4693.57,0.00047945,120]
[377186174,1754271039523,-160.0,0.00048,90]
[377186176,1754271039532,-160.0,0.00048,90]
[377186178,1754271039541,-160.0,0.00048,120]
[377186180,1754271039551,-160.0,0.00048,60]
[377186182,1754271039560,-160.0,0.00048,60]
[377186184,1754271039569,-160.0,0.00048,120]
[377186186,1754271039578,-163.32302678,0.00048,120]
[377186188,1754271039592,-151.0,0.000481,21]
[377186190,1754271039601,-279.89948095,0.00048499,120]
[377186192,1754271039610,-133526.97402076,0.000485,120]
[377186194,1754271039620,-4343.32,0.000485,14]
[377186196,1754271039629,-4693.57,0.0004863,120]
[377186198,1754271039639,-4304.65,0.00048635,15]
[377186200,1754271039649,-153.344241,0.00048742,5]
[377186202,1754271039659,-2078.23,0.00049,7]
[377186204,1754271039669,-185.65,0.00049006,14]
[377186206,1754271039679,-153.0,0.00049041,30]
[377186208,1754271039689,-2576.43,0.00049099,14]
[377186210,1754271039698,-4723.24414703,0.000491,2]
[377186212,1754271039708,-173.49061871,0.00049115,2]
[377186214,1754271039719,-4063.04749687,0.0004918,4]
[377186216,1754271039728,-200.0,0.00049192,60]
[377186218,1754271039738,-200.0,0.00049192,60]
[377186220,1754271039747,-200.0,0.00049192,60]
[377186222,1754271039757,-200.0,0.00049192,60]
[377186224,1754271039767,-200.0,0.00049192,60]
[377186226,1754271039776,-200.0,0.00049192,60]
[377186228,1754271039786,-367.0,0.00049192,60]
[377186230,1754271039795,-19999.99,0.000492,120]
[377186232,1754271039805,-607218.89887822,0.000492,120]
[377186235,1754271039817,-2128.4089011,0.000492,120]
[377186237,1754271039829,-10360.09918636,0.000492,120]
[377186239,1754271039838,-4063.04749687,0.00049205,4]
[377186241,1754271039847,-210.30721574,0.00049215,2]
[377186243,1754271039856,-16066.55889147,0.00049215,5]
[377186245,1754271039868,-1229.92321603,0.00049215,5]
[377186249,1754271039890,-4102.16209663,0.00049215,5]
[377186347,1754271040884,-380.36253887,0.00038653,2]
[377186348,1754271040895,-646.93314183,0.00038653,2]
[377186349,1754271040906,-160.0,0.00042769,2]
[377186350,1754271040916,-19479.94892875,0.00049215,5]
[377186351,1754271040925,-231.62108626,0.00049269,2]
[377186352,1754271040935,-841.87402298,0.00049278,2]
[377186353,1754271040944,-4063.04749687,0.00049295,4]
[377186354,1754271040953,-173.0,0.000493,79]
[377186355,1754271040963,-4063.04749687,0.00049304,4]
[377186356,1754271040972,-151.0,0.00049305,120]
[377186357,1754271040981,-151.0,0.00049305,120]
[377186358,1754271040990,-151.0,0.00049305,120]
[377186359,1754271041000,-151.0,0.00049305,120]
[377186360,1754271041009,-155.772803,0.00049305,120]
[377186361,1754271041019,-151.0,0.00049305,120]
[377186362,1754271041028,-151.0,0.00049305,120]
[377186363,1754271041037,-151.0,0.00049305,120]
[377186364,1754271041046,-152.637558,0.00049305,120]
[377186365,1754271041056,-44693.5224656,0.00049305,4]
[377186366,1754271041065,-1000.0,0.00049314,2]
[377186367,1754271041074,-1000.0,0.00049314,2]
[377186368,1754271041084,-1000.0,0.00049314,2]
[377186369,1754271041093,-1000.0,0.00049314,2]
[377186370,1754271041103,-1000.0,0.00049314,2]
[377186371,1754271041112,-1000.0,0.00049314,2]
[377186372,1754271041121,-1000.0,0.00049314,2]
[377186373,1754271041130,-1000.0,0.00049314,2]
[377186374,1754271041139,-1000.0,0.00049314,2]
[377186375,1754271041149,-1000.0,0.00049314,2]
[377186376,1754271041158,-1000.0,0.00049314,2]
[377186377,1754271041167,-1000.0,0.00049314,2]
[377186378,1754271041177,-1000.0,0.00049314,2]
[377186379,1754271041186,-511.19332672,0.00049314,2]
[377186380,1754271041195,-151.0,0.00049314,120]
[377186381,1754271041204,-151.0,0.00049314,120]
[377186382,1754271041214,-151.0,0.00049314,120]
[377186383,1754271041223,-151.0,0.00049314,120]
[377186384,1754271041232,-250.0,0.00049314,120]
[377186385,1754271041242,-250.0,0.00049314,120]
[377186386,1754271041251,-151.0,0.00049314,120]
[377186387,1754271041260,-250.0,0.00049314,120]
[377186388,1754271041269,-250.0,0.00049314,120]
[377186389,1754271041278,-250.0,0.00049314,120]
[377186390,1754271041287,-250.0,0.00049314,120]
[377186391,1754271041296,-250.0,0.00049314,120]
[377186392,1754271041306,-151.0,0.00049314,120]
[377186393,1754271041316,-250.0,0.00049314,120]
[377186394,1754271041325,-250.0,0.00049314,120]
[377186395,1754271041334,-151.0,0.00049314,120]
[377186396,1754271041343,-250.0,0.00049314,120]
[377186397,1754271041352,-151.0,0.00049314,120]
[377186398,1754271041362,-151.0,0.00049314,120]
[377186399,1754271041371,-151.0,0.00049314,120]
[377186400,1754271041380,-151.0,0.00049314,120]
[377186401,1754271041389,-250.0,0.00049314,120]
[377186402,1754271041401,-151.0,0.00049314,120]
[377186403,1754271041410,-151.0,0.00049314,120]
[377186404,1754271041423,-250.0,0.00049314,120]
[377186405,1754271041432,-151.0,0.00049314,120]
[377186406,1754271041441,-250.0,0.00049314,120]
[377186407,1754271041451,-151.0,0.00049314,120]
[377186408,1754271041461,-250.0,0.00049314,120]
[377186409,1754271041580,-151.0,0.00049314,120]
[377186410,1754271041590,-300.0,0.00049314,120]
[377186411,1754271041599,-250.0,0.00049314,120]
[377186412,1754271041609,-151.0,0.00049314,120]
[377186413,1754271041619,-300.0,0.00049314,120]
[377186414,1754271041628,-250.0,0.00049314,120]
[377186415,1754271041638,-151.0,0.00049314,120]
[377186416,1754271041647,-250.0,0.00049314,120]
[377186417,1754271041657,-300.0,0.00049314,120]
[377186418,1754271041667,-250.0,0.00049314,120]
[377186419,1754271041676,-270.97846256,0.00049314,120]
[377186420,1754271041685,-300.0,0.00049314,120]
[377186421,1754271041695,-250.0,0.00049314,120]
[377186422,1754271041704,-300.0,0.00049314,120]
[377186423,1754271041713,-250.0,0.00049314,120]
[377186424,1754271041722,-300.0,0.00049314,120]
[377186425,1754271041732,-300.0,0.00049314,120]
[377186426,1754271041741,-300.0,0.00049314,120]
[377186427,1754271041750,-300.0,0.00049314,120]
[377186428,1754271041760,-301.47289512,0.00049314,120]
[377186429,1754271041769,-460.0,0.00049315,120]
[377186430,1754271041778,-151.0,0.00049315,120]
[377186431,1754271041787,-151.0,0.00049315,120]
[377186433,1754271041797,-151.0,0.00049315,120]
[377186434,1754271041806,-460.0,0.00049315,120]
[377186435,1754271041815,-461.44965628,0.00049315,120]
[377186436,1754271041825,-151.0,0.00049315,120]
[377186437,1754271041834,-460.0,0.00049315,120]
[377186438,1754271041843,-460.0,0.00049315,120]
[377186439,1754271041852,-460.0,0.00049315,120]
[377186440,1754271041862,-460.0,0.00049315,120]
[377186441,1754271041872,-460.0,0.00049315,120]
[377186442,1754271041881,-460.0,0.00049315,120]
[377186443,1754271041891,-460.0,0.00049315,120]
[377186444,1754271041901,-460.0,0.00049315,120]
[377186445,1754271041910,-460.0,0.00049315,120]
[377186446,1754271041919,-1193.14,0.00049315,120]
[377186447,1754271041928,-460.0,0.00049315,120]
[377186448,1754271041938,-831.67,0.00049315,120]
[377186449,1754271041947,-568.71833083,0.00049315,120]
[377186450,1754271041956,-460.0,0.00049315,120]
[377186451,1754271041966,-151.0,0.00049315,120]
[377186452,1754271041976,-275.850862,0.00049315,120]
[377186453,1754271041986,-460.0,0.00049315,120]
[377186454,1754271041995,-219.36,0.00049315,120]
[377186455,1754271042005,-460.0,0.00049315,120]
[377186456,1754271042014,-460.0,0.00049315,120]
[377186457,1754271042024,-460.0,0.00049315,120]
[377186458,1754271042034,-460.0,0.00049315,120]
[377186459,1754271042043,-151.0,0.00049315,120]
[377186460,1754271042052,-151.0,0.00049315,120]
[377186461,1754271042062,-151.0,0.00049315,120]
[377186462,1754271042071,-151.0,0.00049315,120]
[377186463,1754271042080,-460.0,0.00049315,120]
[377186464,1754271042089,-460.0,0.00049315,120]
[377186465,1754271042098,-460.0,0.00049315,120]
[377186466,1754271042108,-460.0,0.00049315,120]
[377186467,1754271042117,-460.0,0.00049315,120]
[377186468,1754271042127,-460.0,0.00049315,120]
[377186469,1754271042136,-531.29,0.00049315,120]
[377186470,1754271042146,-460.0,0.00049315,120]
[377186471,1754271042156,-460.0,0.00049315,120]
[377186472,1754271042166,-460.0,0.00049315,120]
[377186473,1754271042176,-467.77829623,0.00049315,120]
[377186474,1754271042185,-460.0,0.00049315,120]
[377186475,1754271042195,-458.18300989,0.00049315,120]
[377186476,1754271042204,-460.0,0.00049315,120]
[377186477,1754271042213,-636.19,0.00049315,120]
[377186478,1754271042224,-460.0,0.00049315,120]
[377186479,1754271042235,-283.32548639,0.00049315,120]
[377186480,1754271042245,-460.0,0.00049315,120]
[377186481,1754271042255,-460.0,0.00049315,120]
[377186482,1754271042264,-460.0,0.00049315,120]
[377186483,1754271042274,-460.0,0.00049315,120]
[377186484,1754271042284,-460.0,0.00049315,120]
[377186485,1754271042293,-460.0,0.00049315,120]
[377186486,1754271042302,-460.0,0.00049315,120]
[377186487,1754271042311,-460.0,0.00049315,120]
[377186488,1754271042321,-393.14184363,0.00049315,120]
[377186489,1754271042331,-460.0,0.00049315,120]
[377186490,1754271042341,-460.0,0.00049315,120]
[377186491,1754271042351,-494.6,0.00049315,120]
[377186492,1754271042363,-151.730287,0.00049315,120]
[377186493,1754271042372,-460.0,0.00049315,120]
[377186494,1754271042381,-460.0,0.00049315,120]
[377186495,1754271042391,-460.0,0.00049315,120]
[377186496,1754271042400,-1228.13,0.00049315,120]
[377186497,1754271042410,-460.0,0.00049315,120]
[377186498,1754271042423,-460.0,0.00049315,120]
[377186499,1754271042433,-460.0,0.00049315,120]
[377186500,1754271042442,-460.0,0.00049315,120]
[377186501,1754271042452,-460.000001,0.00049315,120]
[377186502,1754271042462,-460.0,0.00049315,120]
[377186503,1754271042472,-460.0,0.00049315,120]
[377186504,1754271042482,-460.0,0.00049315,120]
[377186505,1754271042491,-460.0,0.00049315,120]
[377186506,1754271042503,-460.99063525,0.00049315,120]
[377186507,1754271042513,-460.0,0.00049315,120]
[377186508,1754271042523,-462.88,0.00049315,120]
[377186509,1754271042534,-460.0,0.00049315,120]
[377186510,1754271042544,-460.0,0.00049315,120]
[377186511,1754271042554,-460.0,0.00049315,120]
[377186512,1754271042565,-460.0,0.00049315,120]
[377186513,1754271042574,-151.0,0.00049315,120]
[377186514,1754271042584,-460.0,0.00049315,120]
[377186515,1754271042594,-151.0,0.00049315,120]
[377186516,1754271042604,-151.0,0.00049315,120]
[377186517,1754271042613,-151.0,0.00049315,120]
[377186518,1754271042622,-151.0,0.00049315,120]
[377186519,1754271042632,-460.0,0.00049315,120]
[377186520,1754271042644,-460.0,0.00049315,120]
[377186521,1754271042653,-151.0,0.00049315,120]
[377186522,1754271042663,-232.843891,0.00049315,120]
[377186523,1754271042672,-460.0,0.00049315,120]
[377186524,1754271042682,-460.0,0.00049315,120]
[377186525,1754271042691,-460.0,0.00049315,120]
[377186526,1754271042700,-460.0,0.00049315,120]
[377186527,1754271042710,-460.0,0.00049315,120]
[377186528,1754271042721,-460.0,0.00049315,120]
[377186529,1754271042732,-460.0,0.00049315,120]
[377186530,1754271042742,-532.5190395,0.00049315,120]
[377186531,1754271042751,-460.0,0.00049315,120]
[377186532,1754271042761,-460.0,0.00049315,120]
[377186533,1754271042771,-460.0,0.00049315,120]
[377186534,1754271042781,-384.46901213,0.00049315,120]
[377186535,1754271042790,-464.48015642,0.00049315,120]
[377186536,1754271042799,-820.75,0.00049315,120]
[377186537,1754271042808,-462.42653264,0.00049315,120]
[377186538,1754271042818,-460.0,0.00049315,120]
[377186539,1754271042827,-460.0,0.00049315,120]
[377186540,1754271042837,-460.0,0.00049315,75]
[377186541,1754271042846,-460.0,0.00049315,120]
[377186542,1754271042856,-662.0,0.00049315,120]
[377186543,1754271042865,-481.04634767,0.00049315,120]
[377186544,1754271042874,-460.0,0.00049315,120]
[377186545,1754271042883,-458.34430065,0.00049315,120]
[377186546,1754271042892,-520.62517052,0.00049315,120]
[377186547,1754271042902,-466.92,0.00049315,120]
[377186548,1754271042911,-460.0,0.00049315,120]
[377186549,1754271042929,-460.0,0.00049315,120]
[377186550,1754271042939,-460.0,0.00049315,120]
[377186551,1754271042949,-460.0,0.00049315,120]
[377186552,1754271042958,-464.33235739,0.00049315,120]
[377186553,1754271042969,-460.0,0.00049315,120]
[377186554,1754271042978,-460.0,0.00049315,120]
[377186555,1754271042987,-460.0,0.00049315,120]
[377186556,1754271042996,-158.0857943,0.00049315,120]
[377186557,1754271043006,-460.0,0.00049315,120]
[377186558,1754271043015,-549.142177,0.00049315,120]
[377186559,1754271043024,-223.70795217,0.00049315,120]
[377186560,1754271043045,-236.29204783,0.00049315,120]
[377186561,1754271043054,-460.0,0.00049315,120]
[377186562,1754271043063,-460.0,0.00049315,120]
[377186563,1754271043072,-460.0,0.00049315,120]
[377186564,1754271043081,-460.0,0.00049315,120]
[377186565,1754271043091,-460.0,0.00049315,120]
[377186566,1754271043100,-460.0,0.00049315,120]
[377186567,1754271043109,-1013.44,0.00049315,120]